{"text_format":"3","workbook":"xlsx","n_sheets":3,"sheets":["附件1","附件2","附件3"],"not_rendered":{"defined_names":1},"read":"whole","date_system":"1900"}

{"sheet":"附件1","index":0,"n_rows":33,"n_cols":14,"rows_kept":33,"merged":[[0,0,0,13],[27,1,27,12],[28,1,28,12],[29,1,29,12],[30,1,30,12],[31,1,31,12],[32,0,32,13]]}
["岳阳经济技术开发区                                                              2019年公开招聘中小学教师、幼师计划表"]
[null,"语文","数学","英语","地理","历史","政治","生物","物理","体育","音乐","美术","信息  技术","小计"]
["市第十九中学",6,6,2,2,2,2,3,1,2,2,1,1,{"$f":"SUM(B3:M3)","v":30}]
["长岭中学",4,2,1,1,1,1,1,2,1,1,null,null,{"$f":"SUM(B4:L4)","v":15}]
["初中合计",{"$f":"SUM(B3:B4)","v":10},{"$f":"SUM(C3:C4)","v":8},3,3,3,3,4,3,3,3,1,1,{"$f":"SUM(B5:M5)","v":45}]
["珍珠山小学",10,9,1,{"$nulls":5},1,1,1,1,{"$f":"SUM(B6:M6)","v":24}]
["北港小学",10,9,{"$nulls":6},1,{"$nulls":3},{"$f":"SUM(B7:M7)","v":20}]
["东城小学",8,4,{"$nulls":6},1,null,1,null,{"$f":"SUM(B8:L8)","v":14}]
["八字门小学",2,1,{"$nulls":6},1,null,1,null,5]
["王家河小学",2,1,1,{"$nulls":5},1,{"$nulls":3},5]
["康王中心小学",1,1,1,{"$nulls":5},1,{"$nulls":3},4]
["乌江小学",1,null,1,{"$nulls":9},2]
["新合小学",1,1,1,{"$nulls":9},3]
["龙凤小学",1,1,{"$nulls":10},2]
["长岭明德小学",null,1,1,{"$nulls":9},2]
["平地小学",null,1,{"$nulls":10},1]
["公城小学",1,{"$nulls":11},1]
["三荷中心小学",1,1,{"$nulls":7},1,null,null,3]
["王桥小学",1,null,1,{"$nulls":9},2]
["昆山小学",1,1,{"$nulls":10},2]
["西塘中心小学",3,2,{"$nulls":7},1,null,null,6]
["高城明德小学",1,1,1,{"$nulls":9},3]
["分水垅小学",1,{"$nulls":11},1]
["白石岭小学",1,1,{"$nulls":7},1,null,null,3]
["监申桥小学",null,null,1,{"$nulls":9},1]
["金凤桥小学",1,{"$nulls":11},1]
["小学合计",{"$f":"SUM(B6:B26)","v":47},{"$f":"SUM(C6:C26)","v":35},9,{"$nulls":5},6,4,3,1,105]
[null,"幼师计划"]
["西塘中心幼儿园",1,{"$nulls":11},1]
["东站幼儿园",1,{"$nulls":11},1]
["康王中心幼儿园",1,{"$nulls":11},1]
["幼师合计",3,{"$nulls":11},3]
["其中，市第十九中学支教平地中学3名（语文1名、数学1名、英语1名）、支教西塘中学3名（语文1名、数学1名、物理1名），支教时限3年。"]

{"sheet":"附件2","index":1,"n_rows":42,"n_cols":12,"rows_kept":42,"merged":[[0,0,0,11],[2,1,19,1],[2,6,19,6],[2,8,19,8],[2,9,19,9],[2,11,19,11],[20,1,20,11],[21,1,38,1],[21,6,38,6],[21,8,38,8],[21,9,38,9],[21,11,38,11],[39,1,39,11],[41,1,41,11]]}
["岳阳经济技术开发区2019年公开招聘中小学教师、幼师岗位表"]
["序号","招聘类别名称","岗位名称","岗位类别","计划招聘人数","性别要求","最低学历要求","学历专业要求","年龄  要求","教师资格要求","需求单位","备注"]
[1,"初中","初中语文教师A","专技岗位",2,"男","全日制本科及以上学历","汉语言文学及相关专业","35周岁及以下，1983年6月30日及以后出生","具有初中及以上相应岗位教师资格证","市第十九中学1人、长岭中学1人","语文、英语教师需具有二甲及以上普通话等级证书"]
[2,null,"初中语文教师B","专技岗位",2,"女",null,"汉语言文学及相关专业",null,null,"市第十九中学1人、长岭中学1人"]
[3,null,"初中语文教师C","专技岗位",6,"不限",null,"汉语言文学及相关专业",null,null,"市第十九中学2人、市第十九中学(支教平地中学）1人、市第十九中学(支教西塘中学）1人、长岭中学2人"]
[4,null,"初中数学教师A","专技岗位",2,"男",null,"数学及相关专业",null,null,"市第十九中学1人、长岭中学1人"]
[5,null,"初中数学教师B","专技岗位",2,"女",null,"数学及相关专业",null,null,"市第十九中学1人、长岭中学1人"]
[6,null,"初中数学教师C","专技岗位",4,"不限",null,"数学及相关专业",null,null,"市第十九中学2人、市第十九中学(支教平地中学）1人、市第十九中学(支教西塘中学）1人"]
[7,null,"初中英语教师","专技岗位",3,"不限",null,"英语及相关专业",null,null,"市第十九中学1人、市第十九中学(支教平地中学）1人、长岭中学1人"]
[8,null,"初中地理教师","专技岗位",3,"不限",null,"地理及相关专业",null,null,"市第十九中学2人、长岭中学1人"]
[9,null,"初中历史教师","专技岗位",3,"不限",null,"历史及相关专业",null,null,"市第十九中学2人、长岭中学1人"]
[10,null,"初中政治教师","专技岗位",3,"不限",null,"政治及相关专业",null,null,"市第十九中学2人、长岭中学1人"]
[11,null,"初中生物教师","专技岗位",4,"不限",null,"生物及相关专业",null,null,"市第十九中学3人、长岭中学1人"]
[12,null,"初中物理教师","专技岗位",3,"不限",null,"物理及相关专业",null,null,"市第十九中学(支教西塘中学）1人、长岭中学2人"]
[13,null,"初中体育教师A","专技岗位",1,"男",null,"体育及相关专业（篮球方向）",null,null,"市第十九中学1人"]
[14,null,"初中体育教师B","专技岗位",2,"男",null,"体育及相关专业（足球方向）",null,null,"市第十九中学1人、长岭中学1人"]
[15,null,"初中音乐教师A","专技岗位",1,"男",null,"音乐及相关专业",null,null,"长岭中学1人"]
[16,null,"初中音乐教师B","专技岗位",2,"女",null,"音乐及相关专业",null,null,"市第十九中学2人"]
[17,null,"初中美术教师","专技岗位",1,"不限",null,"美术及相关专业",null,null,"市第十九中学1人"]
[18,null,"初中信息技术教师","专技岗位",1,"适合男性",null,"信息技术及相关专业",null,null,"市第十九中学1人"]
["小计",45]
[19,"小学","小学语文教师A","专技岗位",3,"男","全日制本科及以上学历","不限","35周岁及以下，1983年6月30日及以后出生","具有小学及以上相应岗位教师资格证","珍珠山小学1人、北港小学1人、八字门小学1人","语文、英语教师需具有二甲及以上普通话等级证书；小学体育教师C须取得省级及以上乒乓球比赛前8名；小学体育教师D须取得省级及以上羽毛球比赛前8名"]
[20,null,"小学语文教师B","专技岗位",3,"女",null,"不限",null,null,"珍珠山小学1人、北港小学1人、八字门小学1人"]
[21,null,"小学语文教师C","专技岗位",21,"不限",null,"不限",null,null,"珍珠山小学4人、北港小学4人、东城小学4人、王家河小学2人、康王中心小学1人、乌江小学1人、新合小学1人、龙凤小学1人、分水垅小学1人、白石岭小学1人、金凤桥小学1人"]
[22,null,"小学语文教师D","专技岗位",20,"不限",null,"不限",null,null,"珍珠山小学4人、北港小学4人、东城小学4人、公城小学1人、三荷中心小学1人、王桥小学1人、昆山小学1人、西塘中心小学3人、高城明德小学1人"]
[23,null,"小学数学教师A","专技岗位",3,"男",null,"不限",null,null,"东城小学1人、王家河小学1人、康王中心小学1人"]
[24,null,"小学数学教师B","专技岗位",3,"女",null,"不限",null,null,"珍珠山小学1人、北港小学1人、东城小学1人"]
[25,null,"小学数学教师C","专技岗位",13,"不限",null,"不限",null,null,"珍珠山小学4人、北港小学4人、东城小学2人、新合小学1人、长岭明德小学1人、白石岭小学1人"]
[26,null,"小学数学教师D","专技岗位",16,"不限",null,"不限",null,null,"珍珠山小学4人、北港小学4人、八字门小学1人、龙凤小学1人、平地小学1人、三荷中心小学1人、昆山小学1人、西塘中心小学2人、高城明德小学1人"]
[27,null,"小学英语教师","专技岗位",9,"不限",null,"英语及相关专业",null,null,"珍珠山小学1人、王家河小学1人、康王中心小学1人、乌江小学1人、新合小学1人、长岭明德小学1人、王桥小学1人、高城明德小学1人、监申桥小学1人"]
[28,null,"小学体育教师A","专技岗位",1,"不限",null,"体育及相关专业",null,null,"康王中心小学1人"]
[29,null,"小学体育教师B","专技岗位",1,"不限",null,"体育及相关专业（羽毛球方向）",null,null,"王家河小学1人"]
[30,null,"小学体育教师C","专技岗位",1,"不限",null,"不限",null,null,"东城小学1人"]
[31,null,"小学体育教师D","专技岗位",1,"不限",null,"不限",null,null,"八字门小学1人"]
[32,null,"小学体育教师E","专技岗位",2,"男",null,"体育及相关专业（蓝球方向）",null,null,"珍珠山小学1人、北港小学1人"]
[33,null,"小学音乐教师","专技岗位",4,"不限",null,"音乐及相关专业",null,null,"珍珠山小学1人、三荷中心小学1人、西塘中心小学1人、白石岭小学1人"]
[34,null,"小学美术教师A","专技岗位",1,"男",null,"美术及相关专业",null,null,"八字门小学1人"]
[35,null,"小学美术教师B","专技岗位",2,"女",null,"美术及相关专业",null,null,"珍珠山小学1人、东城小学1人"]
[36,null,"小学信息技术教师","专技岗位",1,"适合男性",null,"信息技术及相关专业",null,null,"珍珠山小学1人"]
["小计",105]
[37,"幼儿园","幼师","专技岗位",3,"不限","全日制专科及以上学历","幼儿教学或学前教育专业","30周岁及以下，1988年6月30日及以后出生","具有幼儿园教师资格证","西塘中心幼儿园1人、东站幼儿园1人、康王中心幼儿园1人","需具有二甲及以上普通话等级证书"]
["小计",3]

{"sheet":"附件3","index":2,"n_rows":32,"n_cols":9,"rows_kept":32,"merged":[[0,0,0,8],[1,0,1,8],[2,0,2,1],[2,5,2,6],[2,8,7,8],[3,0,3,1],[3,5,3,6],[4,0,4,1],[4,2,4,4],[4,5,4,6],[5,0,5,2],[5,3,5,4],[5,5,5,6],[6,0,6,1],[6,2,6,4],[6,5,6,6],[7,0,7,1],[7,5,7,6],[8,0,8,1],[8,2,8,4],[8,5,8,6],[8,7,8,8],[9,0,9,1],[9,2,9,6],[10,0,10,1],[10,2,10,5],[10,7,10,8],[11,0,11,1],[11,2,11,5],[11,7,11,8],[12,0,15,0],[12,1,15,8],[16,0,21,0],[16,1,19,8],[21,1,21,8],[22,0,28,0],[22,1,22,8],[23,1,23,8],[24,1,24,8],[25,1,25,8],[26,1,26,8],[27,1,27,8],[28,1,28,8],[29,0,30,0],[29,1,30,8],[31,0,31,8]]}
["岳阳经济技术开发区                                                            2019年公开招聘中小学教师、幼师报名表"]
["应聘类别：                         岗位名称：                              报名序号："]
["姓    名",null,null,"性    别",null,"民    族",null,null,"贴相片           "]
["出生年月日",null,null,"政治面貌",null,"学历学位"]
["毕业院校",{"$nulls":4},"所学专业"]
["职称、执（职）业资格",{"$nulls":4},"取得时间"]
["普通话等级",{"$nulls":4},"教师资格证  学段及学科"]
["户籍所在地",null,null,"婚姻状况",null,"档案保管单位"]
["身份证号",{"$nulls":4},"有何特长"]
["通讯地址",{"$nulls":6},"电子邮箱"]
["联系电话",{"$nulls":5},"是否在编"]
["参加工作时间",{"$nulls":5},"工作单位"]
["简历（从高中起填写）"]
[]
[]
[]
["应聘人员  承  诺","    本人承诺所提供的材料和填报的信息真实有效，符合应聘岗位所需的资格条件。如有弄虚作假，自动取消考试和聘用资格，并承担相应责任。                                                                                                                                                                                                "]
[]
[]
[]
[{"$nulls":7},"应聘人签名："]
[null,"                             年    月    日            "]
["联合审查  意  见"," "]
[null,"        经审查，符合应聘资格条件。"]
[]
[]
[null,"  审查人签名：                                        审查人签名：                 "]
[null,"  （教育部门）                                        （人事部门）                 "]
[null,"                                                          年    月    日"]
["备  注"]
[]
["说明：1. 考生必须如实填写上述内容，如填报虚假信息者，取消考试或聘用资格。2.如因表格填写错误造成的一切后果由报名者本人承担。3.报名序号由资格审查小组统一填写。4.应聘类别填写初中教师、小学教师、幼师。5.照片反映面部特征，不得使用艺术照、美颜照等。6.此表在完成资格审查后由区教育文体工作局留存。"]